Cogmind - Beta 16 @@@ ROGUE MODE // 2025.11.01 @ 23:45:42 Player: CheifClapdad Result: Self-destructed Performance ------------- Evolutions (2) 1000 Regions Visited (3) 600 Robots Destroyed (5) 25 Value Destroyed (200) 200 Prototype IDs (0) 0 Alien Tech Used (0) 0 Bonus (0) 0 TOTAL SCORE: 1825 Bonus ------- None Cogmind --------- Core Integrity 550/550 Matter 258/300 Energy 100/100 System Corruption 0% Temperature Cool (0) Movement Rolling (95) Location -8/Materials Parts ------- > --- POWER (1) -------- (None) > --- PROPULSION (4) --- Wheel Subdweller Monowheel > --- UTILITY (4) ------ Small Storage Unit > --- WEAPON (2) ------- Assault Rifle Light Assault Rifle > --- INVENTORY (8) ---- Subdweller Power Source Light Treads Subdweller Monowheel EM Pulse Gun Subdweller Laser Peak State ------------ > --- POWER ------------ Light Ion Engine > --- PROPULSION ------- Light Treads Wheel > --- UTILITY ---------- Small Storage Unit > --- WEAPON ----------- Assault Rifle Slug Cannon > --- INVENTORY -------- Light Ion Engine Light Treads Wheel Subdweller Monowheel EM Pulse Gun Subdweller Laser Assault Rifle Light Assault Rifle [Rating: 10] Favorites ----------- Power Light Ion Engine Engine Light Ion Engine Propulsion Wheel Treads Light Treads Wheel Wheel Utility Small Storage Unit Storage Small Storage Unit Weapon Assault Rifle Ballistic Gun Assault Rifle Ballistic Cannon Slug Cannon Build | -11 -10 -10 -8 ------- Run | Yrd Mat Sub Mat Slots Evolved 4 | . . . 4 Power . | . . . . Propulsion 2 | . . . 2 Utility 2 | . . . 2 Weapon . | . . . . Parts Attached 11 | 6 . 5 . Power 1 | 1 . . . Engine 1 | 1 . . . Core . | . . . . Reactor . | . . . . Propulsion 4 | 2 . 2 . Treads 1 | 1 . . . Leg . | . . . . Wheel 3 | 1 . 2 . Hover . | . . . . Flight . | . . . . Utility 1 | 1 . . . Device . | . . . . Storage 1 | 1 . . . Processor . | . . . . Hackware . | . . . . Protection . | . . . . Artifact . | . . . . Weapon 5 | 2 . 3 . Energy Gun . | . . . . Energy Cannon . | . . . . Ballistic Gun 4 | 2 . 2 . Ballistic Cannon 1 | . . 1 . Launcher . | . . . . Special Weapon . | . . . . Impact Weapon . | . . . . Slashing Weapon . | . . . . Piercing Weapon . | . . . . Special Melee Weapon . | . . . . Unidentified Prototypes . | . . . . Parts Lost 5 | . . 5 . Power 1 | . . 1 . Propulsion 2 | . . 2 . Utility . | . . . . Weapon 2 | . . 2 . Highest Loss Streak 5 | . . 5 . To Critical Strikes . | . . . . Average Backups 5 | 1 3 6 5 Power . | . . 1 1 Propulsion 2 | 1 2 2 2 Utility . | . . . . Weapon 2 | . 1 2 2 Tool/Special . | . . . . Unused Backups 6 | . . 1 5 Power 2 | . . 1 1 Propulsion 2 | . . . 2 Utility . | . . . . Weapon 2 | . . . 2 Tool/Special . | . . . . Average Slot Usage (%) 81 | . 85 81 45 Engine 12 | . 14 12 . Treads 12 | . 14 12 . Wheel 14 | . 14 14 18 Storage 13 | . 14 14 9 Ballistic Gun 19 | . 28 17 18 Ballistic Cannon 7 | . . 10 . Peak Build Rating 10 | 6 6 10 6 Average Rating 7 | 5 6 8 6 On Entrance 4 | . 6 6 6 Avg Prop Armor Cover (%) 5 | 4 4 5 . Naked Turns . | . . . . Heaviest Build 17 | 12 12 17 8 Greatest Support 30 | 20 20 30 30 Greatest Overweight (x) 3 | . . 3 . Average Overweight (x) . | . . . . Largest Inventory Capacity 8 | 8 8 8 8 Average Capacity 7 | 6 8 8 8 Most Carried 8 | 3 5 8 5 Average Carried 5 | 2 3 6 5 Final Capacity 8 | 8 8 8 8 Final Carried 5 | 3 5 5 5 Class Distribution -------------------- 100% | Mutant Dominant Class ---------------- Mutant | -10/Materials Mutant | -10/Subcaves Mutant | -8/Materials Resources | -11 -10 -10 -8 ----------- Run | Yrd Mat Sub Mat Matter Collected 440 | 191 . 249 . Remotely . | . . . . Salvage Created 109 | . . 109 . Parts 6 | . . 6 . Haulers Intercepted . | . . . . Recyclers Shooed . | . . . . Parts Field Recycled . | . . . . Retrieved Matter . | . . . . Parts Self-Destructed 3 | . . 3 . Prevented . | . . . . Parts Restored . | . . . . Kills | -11 -10 -10 -8 ------- Run | Yrd Mat Sub Mat Combat Hostiles Destroyed 5 | . . 5 . Guns 3 | . . 3 . Cannons 2 | . . 2 . Classes Destroyed 1 | . . 1 . Subdweller 5 | . . 5 . Best Kill Streak 1 | . . 1 . Combat Bots Only 1 | . . 1 . Max Kills in Single Turn 1 | . . 1 . Gunslinging . | . . . . Exploded . | . . . . Melee . | . . . . Uniques/NPCs Destroyed . | . . . . Combat | -11 -10 -10 -8 -------- Run | Yrd Mat Sub Mat Hostile Shots Fired 51 | . . 51 . Missed 13 | . . 13 . Hits 38 | . . 38 . Projectile 38 | . . 38 . Critical Strikes 1 | . . 1 . Damage Taken 845 | . . 845 . Core 173 | . . 173 . Absorbed by Shields . | . . . . Core Remaining (%) 65 | 100 . 30 . Volleys Fired 28 | . . 28 . Largest 2 | . . 2 . Hottest 60 | . . 60 . Shots Fired 49 | . . 49 . Gun 27 | . . 27 . Cannon 22 | . . 22 . Launcher . | . . . . Special . | . . . . Kinetic 49 | . . 49 . Thermal . | . . . . Explosive . | . . . . Electromagnetic . | . . . . Robot Hit Streak 9 | . . 9 . Robot Miss Streak 3 | . . 3 . Penetration Max . | . . . . Secondary Targets . | . . . . Shots Hit Robots 33 | . . 33 . Core Hits 11 | . . 11 . Critical Kills 1 | . . 1 . Critical Parts Destroyed 2 | . . 2 . Critical Strikes 4 | . . 4 . Destroy 4 | . . 4 . Melee Attacks . | . . . . Impact . | . . . . Slashing . | . . . . Piercing . | . . . . Sneak Attacks . | . . . . Combat Hostiles . | . . . . Follow-up Attacks . | . . . . Damage Inflicted 649 | . 2 647 . Guns 221 | . . 221 . Cannons 426 | . . 426 . Explosions . | . . . . Melee . | . . . . Ramming 2 | . 2 . . Kinetic 647 | . . 647 . Thermal . | . . . . Explosive . | . . . . Electromagnetic . | . . . . Impact . | . . . . Slashing . | . . . . Piercing . | . . . . Highest Corruption . | . . . . Average Corruption . | . . . . Corruption Purged . | . . . . Corruption Blocked . | . . . . Overload Shots . | . . . . Overflow Damage . | . . . . Projectiles . | . . . . Explosions . | . . . . Melee . | . . . . Knockbacks 3 | . . 3 . Impact . | . . . . Kinetic 3 | . . 3 . Secondary . | . . . . Self-Inflicted Damage . | . . . . Shots . | . . . . Rammed 1 | . 1 . . Targets Rammed 1 | . 1 . . Kicked . | . . . . Crushed . | . . . . Highest Temperature . | . . . . Average Temperature . | . . . . Received Heat Transfer 165 | . . 165 . Siege Activations . | . . . . Martial Activations . | . . . . Shielding Activations . | . . . . Robots Disrupted . | . . . . Combat Hostiles . | . . . . Robots Corrupted . | . . . . Combat Hostiles . | . . . . Parts Fried . | . . . . Impact Corruptions . | . . . . Robots Melted . | . . . . Combat Hostiles . | . . . . Parts Melted . | . . . . Heat Transferred . | . . . . Parts Sabotaged . | . . . . Parts Stolen . | . . . . Parts Stripped . | . . . . Power Chain Reactions . | . . . . Alert | -11 -10 -10 -8 ------- Run | Yrd Mat Sub Mat Maximum Alert Level . | . . . . Low Security (%) 100 | 100 100 . 100 Level 1 . | . . . . Level 2 . | . . . . Level 3 . | . . . . Level 4 . | . . . . Level 5 . | . . . . High Security . | . . . . Max Security . | . . . . Peak Influence . | . . . . Initial . | . . . . Average . | . . . . Influence Increases . | . . . . Influence Decreases . | . . . . Squads Dispatched 1 | . 1 . . Investigation . | . . . . Extermination . | . . . . Reinforcement 1 | . 1 . . Assault . | . . . . Garrison . | . . . . Intercept . | . . . . Searches Triggered . | . . . . Construction Impeded . | . . . . Haulers Reinforced . | . . . . Active Scanning Responses . | . . . . Cargo Convoy Interrupts . | . . . . Stealth | -11 -10 -10 -8 --------- Run | Yrd Mat Sub Mat Distress Signals . | . . . . Communications Jammed . | . . . . Distress Signals . | . . . . Times Spotted 6 | . . 6 . Peak Tracking Total 2 | . 1 2 . Tactical Retreats . | . . . . Traps | -11 -10 -10 -8 ------- Run | Yrd Mat Sub Mat Traps Triggered . | . . . . Indirectly . | . . . . Trap Hack Attempts . | . . . . Triggered . | . . . . Disarmed . | . . . . Reprogrammed . | . . . . Reused . | . . . . Traps Extracted . | . . . . Installed . | . . . . Triggered . | . . . . Machines | -11 -10 -10 -8 ---------- Run | Yrd Mat Sub Mat Machines Disabled . | . . . . Max in Single Turn . | . . . . Machines Repaired . | . . . . Machines Dismantled . | . . . . Machines Sabotaged . | . . . . Overloaded Fab Kills . | . . . . Hacking | -11 -10 -10 -8 --------- Run | Yrd Mat Sub Mat Machines Accessed . | . . . . Terminals . | . . . . Fabricators . | . . . . Repair Stations . | . . . . Recycling Units . | . . . . Scanalyzers . | . . . . Garrison Access . | . . . . Total Hacks . | . . . . Successful . | . . . . Failed . | . . . . Catastrophic . | . . . . Database Lockouts . | . . . . Manual . | . . . . Terminals . | . . . . Fabricators . | . . . . Repair Stations . | . . . . Recycling Units . | . . . . Scanalyzers . | . . . . Garrison Access . | . . . . Terminal Hacks . | . . . . Fabricator Hacks . | . . . . Repair Station Hacks . | . . . . Recycling Unit Hacks . | . . . . Scanalyzer . | . . . . Garrison Access Hacks . | . . . . Unauthorized Hacks . | . . . . Terminals . | . . . . Fabricators . | . . . . Repair Stations . | . . . . Recycling Units . | . . . . Scanalyzers . | . . . . Garrison Access . | . . . . Data Cores Recovered . | . . . . Used . | . . . . Hacking Detections . | . . . . Full Trace Events . | . . . . Feedback Events . | . . . . Feedback Blocked . | . . . . Robot Schematics Acquired . | . . . . Robots Built . | . . . . Authchips . | . . . . Time . | . . . . Total Robot Build Rating . | . . . . Part Schematics Acquired . | . . . . Parts Built . | . . . . Authchips . | . . . . Time . | . . . . Total Part Build Rating . | . . . . Part Studies Acquired . | . . . . Parts Repaired . | . . . . Time . | . . . . Parts Recycled . | . . . . Recycled Matter . | . . . . Retrieved Matter . | . . . . Retrieved Components . | . . . . Parts Scanalyzed . | . . . . Part Schematics Acquired . | . . . . Parts Damaged . | . . . . Bothacking | -11 -10 -10 -8 ------------ Run | Yrd Mat Sub Mat Used RIF Installer . | . . . . Robots Hacked . | . . . . Non-combat . | . . . . Combat . | . . . . Robot Hacks Applied . | . . . . Relay Couplers Released . | . . . . Fabnet Peak Effective % . | . . . . Robots Rewired . | . . . . Allies Hacked . | . . . . Hacks Repelled . | . . . . Allies | -11 -10 -10 -8 -------- Run | Yrd Mat Sub Mat Total Allies . | . . . . Largest Group . | . . . . Highest-Rated Group . | . . . . Highest-Rated Ally . | . . . . Total Orders . | . . . . Ally Attacks . | . . . . Total Damage . | . . . . Kills . | . . . . Allies Corrupted . | . . . . Allies Melted . | . . . . Intel | -11 -10 -10 -8 ------- Run | Yrd Mat Sub Mat Active Infowar (turns) . | . . . . Robot Analysis Total . | . . . . Derelict Logs Recovered 1 | . . 1 . Drone Launches . | . . . . Drone Recoveries . | . . . . Exploration | -11 -10 -10 -8 ------------- Run | Yrd Mat Sub Mat Turns Passed 1173 | 152 214 793 14 Spaces Moved 718 | 97 113 494 14 Core 9 | 1 . 8 . Treads 552 | 80 113 359 . Legs . | . . . . Wheels 157 | 16 . 127 14 Hover . | . . . . Flight . | . . . . Fastest Speed 50 | 50 160 80 95 Average Speed 145 | 145 160 143 95 Slowest Speed 200 | 160 160 200 95 Overloaded Moves . | . . . . Propulsion Burnouts . | . . . . Robots Hopped . | . . . . Potential Cave-ins . | . . . . Cave-ins Triggered . | . . . . Exploration Rate (%) 11 | 5 20 17 4 Regions Visited 3 Branch Regions 1 Pre-discovered Areas 1 | . . 1 . Known Exits Taken . | . . . . Unknown Exits Taken 3 | 1 1 1 . Scrap Searched 1 | . . 1 . Spaces Dug . | . . . . Terrain Destroyed 5 | . . 5 . Melee . | . . . . Projectile 5 | . . 5 . AOE . | . . . . Terrain Rammed . | . . . . Walls Destroyed . | . . . . Machines Disabled . | . . . . Actions | -11 -10 -10 -8 --------- Run | Yrd Mat Sub Mat Total 797 | 105 146 532 14 Wait 31 | . 31 . . Move 715 | 96 112 493 14 Hop . | . . . . Pick Up 9 | 3 2 4 . Fast Attach 8 | 6 . 2 . Attach 3 | . . 3 . Detach . | . . . . Swap . | . . . . Drop 2 | . . 2 . Fire 28 | . . 28 . Melee . | . . . . Ram . | . . . . Kick . | . . . . Crush 1 | . 1 . . Escape Stasis . | . . . . Rewire . | . . . . Trap . | . . . . Miscellaneous . | . . . . Route ------- -11/Scrapyard -10/Materials -10/Subcaves (discovered 2 exits: [*Mat x2]) -8/Materials History --------- Turn | Location | Event 10 | -11/Scrapyard | Discovered new exit (range 15) 153 | -11/Scrapyard | Entered Materials 306 | -10/Materials | Build established: Mutant 346 | -10/Materials | Discovered new exit (range 6) 367 | -10/Materials | Entered Subcaves 481 | -10/Subcaves | Discovered new exit (range 12) 1009 | -10/Subcaves | Learned location of Zion (-7) 1061 | -10/Subcaves | Discovered new exit (range 7) 1103 | -10/Subcaves | Core integrity fell below 50% 1129 | -10/Subcaves | Lost 5 parts (1p2n2w) 1160 | -10/Subcaves | Entered Materials 1160 | -8/Materials | Evolved 4 slots: Propulsion x2, Utility x2 1174 | -8/Materials | Self-destructed Last Messages --------------- 01086_ MV-RA8(R) knocked back. 01089_ Lgt. Treads destroyed. 01090_ MV-RA8(R) destroyed. 01098_ Slug Cannon destroyed. 01099_ Subatomizers dissect the Disposable Heat Sink. 01100_ Destroyed Sub. Power Source. 01113_ Subatomizers dissect the Sub. Monowheel. 01114_ FZ-QOE(R) destroyed. 01126_ Acquired 12 matter. 01127_ Acquired 44 matter. 01128_ Acquired Sub. Monowheel. 01142_ Subatomizers dissect the Disposable Heat Sink. 01147_ Acquired 39 matter. 01155_ Subatomizers dissect the Disposable Heat Sink. PARAMETERS=PROPULSION+2,UTILITY+2 LOCATION=UNKNOWN GOAL=ESCAPE Map ----- +----------------------------------------------------+ | | | | | | | | | | | | | | | | | | | | | | | | | ???????????#######???????????????????????? | | ???????????# #??????????????????????? | | ???????????# #??????????????????????? | | ???????????# """ #??????????????????????? | | ???????????# """ +??????????????????????? | | ???????????# """ #??????????????????????? | | ???????????# #??????????????????????? | | ???????????####+####?????????????????????? | | ???????????# #?????????????????????? | | ???????????# ##### #???????????????? | | ???????????# #???????????????? | | ???????????######+###### #???????????????? | | ????????????# #??????????????????? | | ????????????# [@ #??????????????????? | | ????????????# [! #??????????????????? | | ????????????# [ #??????????????????? | | ????????????# """ +??????????????????? | | ????????????# "Y" """ #??????????????????? | | ????????????# """ """ #??????????????????? | | ????????????# #??????????????????? | | ????????????###########??????????????????? | | ?????????????????????????????????????????? | | ?????????????????????????????????????????? | | ?????????????????????????????????????????? | | ?????????????????????????????????????????? | | ?????????????????????????????????????????? | | ?????????????????????????????????????????? | | ?????????????????????????????????????????? | | ?????????????????????????????????????????? | | ?????????????????????????????????????????? | | ?????????????????????????????????????????? | | ?????????????????????????????????????????? | | ?????????????????????????????????????????? | | ?????????????????????????????????????????? | | ?????????????????????????????????????????? | | ?????????????????????????????????????????? | | ?????????????????????????????????????????? | | ?????????????????????????????????????????? | +----------------------------------------------------+ Best States ------------- Heat Dissipation 31 Energy Generation 10 Energy Capacity 125 Matter Stores 299 Matter Capacity 300 Sight Range 16 Terrain Scan Density 10 Evasion (%) 44 Recoil Reduction 1 Item Schematics ----------------- None Robot Schematics ------------------ None Fabricated ------------ Nothing Repaired ---------- Nothing Studied --------- None Alien Tech Used ----------------- None Achievements -------------- None Challenges ------------ None Game ------ Seed OpticalIonPod Manual? 0 Play Time 00:05:38 Cumulative 339.2 hours Start 2025.11.01 @ 23:24:15 End 2025.11.01 @ 23:45:42 Sessions 1 Manual Loads 0 Difficulty Rogue Special Mode None Game No. 298 Rogue 298 Adventurer 0 Explorer 0 Win Type - Total 2 Types 1/1/0/0/0/0/0/0/0/0 Lore% 80 Gallery% 80 Achievement% 52 Wizard Run 0 Options --------- Layout 1 ASCII 0 Keyboard 0 Movement Arrows Keybinds 0 Fullscreen 1 Font 24/Smallcaps Map View 50x35 Zoom Use 0% Tactical HUD 1 Map Filters NONE Filters NONE Steam X RUN: 31fc0a24-d38e-4cdd-8067-b29033d1a31b